fUSD/lending_fUSD_20240714
["ID","MTS","AMOUNT","RATE_DAILY","PERIOD"]
[332003662,1720930280310,-47644.43898807,0.000138,2]
[332003663,1720930280329,-500.0,0.00013698,2]
[332003664,1720930280339,-700.71607019,0.000138,2]
[332003665,1720930280351,-682.367788,0.000138,2]
[332003666,1720930280362,-804.75843451,0.000138,2]
[332003667,1720930280373,-1086.99545133,0.000138,2]
[332003668,1720930280791,-342.181893,0.00013647,2]
[332003669,1720930280801,-500.0,0.00013698,2]
[332003670,1720930280812,-500.0,0.00013698,2]
[332003671,1720930280822,-500.0,0.00013698,2]
[332003672,1720930280831,-500.0,0.00013753,2]
[332003673,1720930280841,-24634.98050301,0.000138,2]
[332003674,1720930280854,-442.00189353,0.000138,2]
[332003675,1720930280866,-1750.0,0.000138,2]
[332003676,1720930280878,-18687.90820847,0.000138,2]
[332003677,1720930280891,-622.29187761,0.000138,2]
[332003678,1720930280902,-400.57,0.000138,2]
[332003679,1720930280914,-376.33597057,0.000138,2]
[332003680,1720930280933,-257.47,0.00013698,2]
[332003681,1720930280944,-199.48008335,0.000138,2]
[332003682,1720930280956,-3806.86725448,0.000138,2]
[332003683,1720930280967,-29000.0,0.000138,2]
[332003684,1720930280977,-289.38,0.000138,2]
[332003685,1720930280989,-519.94092033,0.000138,2]
[332003686,1720930281000,-305.0,0.000138,2]
[332003687,1720930281011,-502.08381507,0.000138,2]
[332003688,1720930281022,-1346.51356479,0.000138,2]
[332003689,1720930281033,-929.49487417,0.000138,2]
[332003690,1720930281044,-310.0765343,0.000138,2]
[332003691,1720930281056,-852.18109769,0.000138,2]
[332003692,1720930281074,-298.31787138,0.00013753,2]
[332003693,1720930281085,-321.70639789,0.00013753,2]
[332003694,1720930281095,-31401.5566601,0.000138,2]
[332003695,1720930281108,-22316.73205763,0.000138,2]
[332003696,1720930281120,-638.76619491,0.000138,2]
[332003697,1720930281132,-1019.50204407,0.000138,2]
[332003698,1720930281144,-1261.8553422,0.000138,2]
[332003699,1720930281160,-3075.0,0.000138,2]
[332003700,1720930281171,-607.96846389,0.000138,2]
[332003701,1720930281183,-2990.55215181,0.000138,2]
[332003702,1720930281196,-6545.7621731,0.000138,2]
[332003703,1720930281209,-27062.23784252,0.000138,2]
[332003704,1720930281227,-536.57,0.00013698,2]
[332003705,1720930281241,-3041.23,0.000138,2]
[332003706,1720930281256,-6148.59999996,0.000138,2]
[332003707,1720930281268,-2864.0000015,0.000138,2]
[332003708,1720930281282,-512.52,0.000138,2]
[332003709,1720930281294,-721.4451556,0.000138,2]
[332003710,1720930281306,-517.68,0.000138,2]
[332003711,1720930281321,-35360.87399905,0.000138,2]
[332003712,1720930281334,-98103.96867646,0.000138,2]
[332003713,1720930281343,-14717.06609786,0.000138,2]
[332003714,1720930281390,-325.43605701,0.000138,2]
[332003715,1720930281402,-877.72825,0.000138,2]
[332003716,1720930281415,-3651.52288286,0.000138,2]
[332003717,1720930281425,-488.86904623,0.000138,2]
[332003718,1720930281437,-41072.34750543,0.000138,2]
[332003815,1720931431824,-379.99,0.00010596,2]
[332003816,1720931431834,-188.10654198,0.00010912,2]
[332003817,1720931431843,-649.25144926,0.00011012,2]
[332003818,1720931431852,-443.83799436,0.00011012,2]
[332003819,1720931431882,-56.16200564,0.00011012,2]
[332003820,1720931431891,-500.0,0.00011012,2]
[332003821,1720931431901,-500.0,0.00011012,2]
[332003822,1720931431910,-300.0,0.00011097,2]
[332003823,1720931431920,-5000.0,0.00011098,2]
[332003824,1720931431929,-227.3638533,0.00011098,2]
[332003825,1720931431941,-155.0358531,0.00011098,2]
[332003826,1720931431951,-198.56775583,0.00011098,2]
[332003827,1720931431961,-486.08670574,0.00011098,2]
[332003828,1720931431971,-162.31865318,0.00011098,2]
[332003829,1720931431981,-156.08099226,0.00011098,2]
[332003830,1720931431990,-220.7400091,0.00011098,2]
[332003831,1720931432000,-189.23306309,0.00011098,2]
[332003832,1720931432010,-269.73642823,0.00011098,2]
[332003833,1720931432019,-156.98897869,0.00011098,2]
[332003834,1720931432028,-314.50895648,0.00011098,2]
[332003835,1720931432038,-258.94577765,0.00011197,2]
[332003836,1720931432048,-757.12440938,0.00011199,2]
[332003837,1720931432057,-14247.2130358,0.00011199,2]
[332003838,1720931432069,-868.14257903,0.00011199,2]
[332003839,1720931432107,-11321.46116472,0.00011199,2]
[332003840,1720931432116,-9044.96143761,0.00011199,2]
[332003841,1720931432146,-1426.94125437,0.00011199,2]
[332003842,1720931432155,-341.70599015,0.000118,2]
[332003843,1720931432165,-450.105,0.000119,2]
[332003844,1720931432174,-150.42,0.000119,2]
[332003845,1720931432184,-38.46375548,0.000119,2]
[332003846,1720931432205,-1306.27924452,0.000119,2]
[332003847,1720931432214,-2401.788,0.000119,2]
[332003848,1720931432224,-420.0,0.00012193,2]
[332003849,1720931432233,-250.0,0.00012227,2]
[332003850,1720931432242,-162.33,0.00012227,2]
[332003851,1720931432252,-299.99,0.00012273,2]
[332003852,1720931432261,-155.0,0.00012273,2]
[332003853,1720931432271,-155.0,0.00012302,2]
[332003854,1720931432281,-1639.36485862,0.00012302,2]
[332003855,1720931432290,-285.2,0.00012562,2]
[332003856,1720931432300,-481.14,0.00012595,2]
[332003857,1720931432309,-65.54033263,0.00012619,2]
[332003858,1720931432332,-92.12966737,0.00012619,2]
[332003859,1720931432342,-500.0,0.00012656,2]
[332003860,1720931432351,-50.36968645,0.00012656,2]
[332003873,1720931437627,-1311.18459019,0.00012302,2]
[332003874,1720931437638,-490.90189355,0.00012656,2]
[332003875,1720931437647,-1000.0,0.00012708,2]
[332003876,1720931437656,-379.99,0.0001286,2]
[332003877,1720931437667,-400.0,0.000129,4]
[332003878,1720931437676,-1250.0,0.00013,2]
[332003879,1720931437687,-800.0,0.00013,4]
[332003880,1720931437696,-1200.0,0.000131,4]
[332003881,1720931437706,-201.27754618,0.00013128,2]
[332003882,1720931437715,-13741.48186705,0.00013158,2]
[332003883,1720931437758,-376.75,0.00013158,2]
[332003890,1720931439473,-650.0,0.00013158,2]
[332003891,1720931439643,-1466.76813295,0.00013158,2]
[332003892,1720931439654,-1700.0,0.000132,4]
[332003893,1720931439665,-2100.0,0.000133,4]
[332003894,1720931439674,-587.0,0.00013398,2]
[332003895,1720931439684,-400.0,0.000134,4]
[332003896,1720931439697,-400.0,0.000135,4]
[332003897,1720931439709,-311.81936559,0.00013598,2]
[332003898,1720931439718,-1000.0,0.00013598,2]
[332003899,1720931439728,-678.2117,0.00013598,2]
[332003900,1720931439739,-1000.0,0.00013598,2]
[332003901,1720931439749,-7500.0,0.00013598,2]
[332003902,1720931439758,-400.0,0.000136,4]
[332003903,1720931439767,-374.46,0.00013621,2]
[332003904,1720931439776,-311.81936553,0.00013641,2]
[332003905,1720931439786,-181.52248857,0.00013653,2]
[332003906,1720931439796,-166.5468764,0.00013653,2]
[332003907,1720931439805,-311.81936553,0.00013684,2]
[332003908,1720931439814,-500.0,0.00013698,2]
[332003909,1720931439824,-500.0,0.00013698,2]
[332003910,1720931439833,-500.0,0.00013698,2]
[332003911,1720931439843,-500.0,0.00013698,2]
[332003912,1720931439852,-500.0,0.00013698,2]
[332003913,1720931439861,-500.0,0.00013698,2]
[332003914,1720931439871,-500.0,0.00013698,2]
[332003915,1720931439880,-399.52486348,0.00013698,2]
[332003916,1720931439890,-500.0,0.00013698,2]
[332003917,1720931439899,-500.0,0.00013698,2]
[332003918,1720931439909,-500.0,0.00013698,2]
[332003919,1720931439919,-500.0,0.00013698,2]
[332003920,1720931439928,-500.0,0.00013698,2]
[332003921,1720931439938,-500.0,0.00013698,2]
[332003923,1720931439948,-500.0,0.00013698,2]
[332003925,1720931439957,-500.0,0.00013698,2]
[332003927,1720931439967,-500.0,0.00013698,2]
[332003929,1720931439976,-333.22557906,0.00013698,2]
[332003931,1720931439985,-500.0,0.00013698,2]
[332003933,1720931439995,-500.0,0.00013698,2]
[332003935,1720931440005,-500.0,0.00013698,2]
[332003937,1720931440015,-486.66839978,0.00013698,2]
[332003939,1720931440024,-344.90677217,0.00013698,2]
[332003941,1720931440034,-500.0,0.00013698,2]
[332003943,1720931440043,-500.0,0.00013698,2]
[332003945,1720931440053,-500.0,0.00013698,2]
[332003947,1720931440063,-500.0,0.00013698,2]
[332003949,1720931440072,-500.0,0.00013698,2]
[332003951,1720931440081,-500.0,0.00013698,2]
[332003953,1720931440091,-500.0,0.00013698,2]
[332003955,1720931440100,-500.0,0.00013698,2]
[332003957,1720931440110,-500.0,0.00013698,2]
[332003959,1720931440119,-500.0,0.00013698,2]
[332003961,1720931440130,-500.0,0.00013698,2]
[332003963,1720931440139,-500.0,0.00013698,2]
[332003965,1720931440148,-500.0,0.00013698,2]
[332003967,1720931440158,-500.0,0.00013698,2]
[332003969,1720931440167,-225.25311125,0.00013698,2]
[332003971,1720931440177,-500.0,0.00013698,2]
[332003973,1720931440188,-500.0,0.00013698,2]
[332003975,1720931440197,-500.0,0.00013698,2]
[332003977,1720931440207,-500.0,0.00013698,2]
[332003979,1720931440216,-500.0,0.00013698,2]
[332003981,1720931440226,-500.0,0.00013698,2]
[332003983,1720931440235,-500.0,0.00013698,2]
[332003985,1720931440244,-500.0,0.00013698,2]
[332003987,1720931440254,-500.0,0.00013698,2]
[332003989,1720931440263,-500.0,0.00013698,2]
[332003991,1720931440273,-500.0,0.00013698,2]
[332003993,1720931440282,-500.0,0.00013698,2]
[332003995,1720931440291,-500.0,0.00013698,2]
[332003997,1720931440301,-500.0,0.00013698,2]
[332003999,1720931440311,-500.0,0.00013698,2]
[332004001,1720931440322,-500.0,0.00013698,2]
[332004003,1720931440333,-500.0,0.00013698,2]
[332004005,1720931440342,-500.0,0.00013698,2]
[332004007,1720931440351,-500.0,0.00013698,2]
[332004009,1720931440361,-500.0,0.00013698,2]
[332004011,1720931440370,-500.0,0.00013698,2]
[332004013,1720931440380,-500.0,0.00013698,2]
[332004015,1720931440389,-500.0,0.00013698,2]
[332004017,1720931440399,-500.0,0.00013698,2]
[332004019,1720931440409,-500.0,0.00013698,2]
[332004021,1720931440418,-500.0,0.00013698,2]
[332004023,1720931440429,-500.0,0.00013698,2]
[332004025,1720931440439,-500.0,0.00013698,2]
[332004027,1720931440449,-500.0,0.00013698,2]
[332004029,1720931440459,-500.0,0.00013698,2]
[332004031,1720931440469,-500.0,0.00013698,2]
[332004033,1720931440479,-500.0,0.00013698,2]
[332004035,1720931440488,-500.0,0.00013698,2]
[332004037,1720931440497,-500.0,0.00013698,2]
[332004038,1720931440507,-500.0,0.00013698,2]
[332004040,1720931440516,-500.0,0.00013698,2]
[332004043,1720931440525,-500.0,0.00013698,2]
[332004045,1720931440535,-500.0,0.00013698,2]
[332004047,1720931440544,-502.17644022,0.00013698,2]
[332004049,1720931440554,-500.0,0.00013698,2]
[332004051,1720931440563,-500.0,0.00013698,2]
[332004053,1720931440572,-500.0,0.00013698,2]
[332004055,1720931440581,-500.0,0.00013698,2]
[332004057,1720931440590,-500.0,0.00013698,2]
[332004059,1720931440601,-500.0,0.00013698,2]
[332004061,1720931440611,-500.0,0.00013698,2]
[332004063,1720931440622,-500.0,0.00013698,2]
[332004065,1720931440634,-770.13,0.00013698,2]
[332004067,1720931440643,-500.0,0.00013698,2]
[332004069,1720931440652,-500.0,0.00013698,2]
[332004071,1720931440663,-500.0,0.00013698,2]
[332004073,1720931440672,-500.0,0.00013698,2]
[332004075,1720931440682,-500.0,0.00013698,2]
[332004077,1720931440694,-545.86,0.00013698,2]
[332004079,1720931440706,-500.0,0.00013698,2]
[332004081,1720931440715,-793.16,0.00013698,2]
[332004083,1720931440725,-500.0,0.00013698,2]
[332004085,1720931440737,-500.0,0.00013698,2]
[332004087,1720931440747,-242.39388127,0.00013698,2]
[332004089,1720931440756,-581.09649935,0.00013698,2]
[332004091,1720931440766,-500.0,0.00013698,2]
[332004093,1720931440775,-500.0,0.00013698,2]
[332004095,1720931440785,-500.0,0.00013698,2]
[332004097,1720931440795,-500.0,0.00013698,2]
[332004099,1720931440804,-500.0,0.00013698,2]
[332004101,1720931440813,-918.28,0.00013698,2]
[332004103,1720931440823,-500.0,0.00013698,2]
[332004105,1720931440833,-500.0,0.00013698,2]
[332004107,1720931440842,-500.0,0.00013698,2]
[332004109,1720931440851,-500.0,0.00013698,2]
[332004111,1720931440860,-500.0,0.00013698,2]
[332004113,1720931440870,-500.0,0.00013698,2]
[332004114,1720931440878,-553.02,0.00013698,2]
[332004116,1720931440888,-500.0,0.00013698,2]
[332004118,1720931440898,-500.0,0.00013698,2]
[332004121,1720931440907,-500.0,0.00013698,2]
[332004123,1720931440917,-500.0,0.00013698,2]
[332004125,1720931440929,-500.0,0.00013698,2]
[332004127,1720931440939,-500.0,0.00013698,2]
[332004128,1720931440948,-500.0,0.00013698,2]
[332004130,1720931440957,-500.0,0.00013698,2]
[332004132,1720931440966,-500.0,0.00013698,2]
[332004134,1720931440975,-500.0,0.00013698,2]
[332004136,1720931440985,-500.0,0.00013698,2]
[332004138,1720931440994,-500.0,0.00013698,2]
[332004141,1720931441004,-936.18,0.00013698,2]
[332004143,1720931441014,-500.0,0.00013698,2]
[332004145,1720931441024,-500.0,0.00013698,2]
[332004147,1720931441034,-500.0,0.00013698,2]
[332004149,1720931441043,-895.32,0.00013698,2]
[332004151,1720931441053,-284.62839669,0.00013698,2]
[332004153,1720931441062,-500.0,0.00013698,2]
[332004155,1720931441072,-500.0,0.00013698,2]
[332004156,1720931441081,-500.0,0.00013698,2]
[332004157,1720931441091,-500.0,0.00013698,2]
[332004158,1720931441101,-500.0,0.00013698,2]
[332004159,1720931441110,-500.0,0.00013698,2]
[332004160,1720931441119,-500.0,0.00013698,2]
[332004161,1720931441129,-500.0,0.00013698,2]
[332004162,1720931441139,-668.83,0.00013698,2]
[332004163,1720931441148,-666.26,0.00013698,2]
[332004164,1720931441157,-500.0,0.00013698,2]
[332004165,1720931441167,-500.0,0.00013698,2]
[332004166,1720931441177,-500.0,0.00013698,2]
[332004167,1720931441186,-500.0,0.00013698,2]
[332004169,1720931441196,-500.0,0.00013698,2]
[332004171,1720931441206,-500.0,0.00013698,2]
[332004173,1720931441215,-500.0,0.00013698,2]
[332004175,1720931441224,-500.0,0.00013698,2]
[332004177,1720931441233,-500.0,0.00013698,2]
[332004179,1720931441243,-500.0,0.00013698,2]
[332004181,1720931441253,-500.0,0.00013698,2]
[332004183,1720931441262,-500.0,0.00013698,2]
[332004185,1720931441271,-500.0,0.00013698,2]
[332004187,1720931441281,-500.0,0.00013698,2]
[332004189,1720931441290,-500.0,0.00013698,2]
[332004191,1720931441300,-500.0,0.00013698,2]
[332004193,1720931441309,-500.0,0.00013698,2]
[332004195,1720931441318,-500.0,0.00013698,2]
[332004197,1720931441328,-500.0,0.00013698,2]
[332004199,1720931441338,-500.0,0.00013698,2]
[332004201,1720931441348,-500.0,0.00013698,2]
[332004203,1720931441358,-500.0,0.00013698,2]
[332004205,1720931441367,-500.0,0.00013698,2]
[332004207,1720931441377,-500.0,0.00013698,2]
[332004209,1720931441387,-500.0,0.00013698,2]
[332004211,1720931441395,-500.0,0.00013698,2]
[332004213,1720931441405,-500.0,0.00013698,2]
[332004215,1720931441414,-500.0,0.00013698,2]
[332004217,1720931441423,-500.0,0.00013698,2]
[332004218,1720931441433,-500.0,0.00013698,2]
[332004221,1720931441445,-500.0,0.00013698,2]
[332004222,1720931441454,-500.0,0.00013698,2]
[332004223,1720931441464,-500.0,0.00013698,2]
[332004224,1720931441473,-500.0,0.00013698,2]
[332004225,1720931441483,-500.0,0.00013698,2]
[332004226,1720931441492,-500.0,0.00013698,2]
[332004227,1720931441501,-500.0,0.00013698,2]
[332004228,1720931441510,-500.0,0.00013698,2]
[332004229,1720931441519,-500.0,0.00013698,2]
[332004230,1720931441781,-500.0,0.00013698,2]
[332004231,1720931441792,-500.0,0.00013698,2]
[332004232,1720931441802,-500.0,0.00013698,2]
[332004233,1720931441812,-500.0,0.00013698,2]
[332004234,1720931441821,-500.0,0.00013698,2]
[332004235,1720931441831,-500.0,0.00013698,2]
[332004236,1720931441840,-500.0,0.00013698,2]
[332004237,1720931441850,-500.0,0.00013698,2]
[332004238,1720931441859,-500.0,0.00013698,2]
[332004239,1720931441868,-500.0,0.00013698,2]
[332004240,1720931441878,-500.0,0.00013698,2]
[332004241,1720931441887,-500.0,0.00013698,2]
[332004242,1720931441896,-500.0,0.00013698,2]
[332004243,1720931441906,-500.0,0.00013698,2]
[332004244,1720931441915,-500.0,0.00013698,2]
[332004245,1720931441924,-500.0,0.00013698,2]
[332004246,1720931441933,-500.0,0.00013698,2]
[332004247,1720931441944,-500.0,0.00013698,2]
[332004248,1720931441953,-500.0,0.00013698,2]
[332004249,1720931441962,-500.0,0.00013698,2]
[332004250,1720931441972,-500.0,0.00013698,2]
[332004251,1720931441982,-500.0,0.00013698,2]
[332004252,1720931441992,-606.38420345,0.00013698,2]
[332004253,1720931442002,-500.0,0.00013698,2]
[332004254,1720931442013,-500.0,0.00013698,2]
[332004255,1720931442023,-500.0,0.00013698,2]
[332004256,1720931442032,-500.0,0.00013698,2]
[332004257,1720931442043,-500.0,0.00013698,2]
[332004258,1720931442054,-500.0,0.00013698,2]
[332004259,1720931442064,-500.0,0.00013698,2]
[332004260,1720931442073,-500.0,0.00013698,2]
[332004261,1720931442083,-500.0,0.00013698,2]
[332004262,1720931442094,-500.0,0.00013698,2]
[332004263,1720931442103,-500.0,0.00013698,2]
[332004264,1720931442113,-500.0,0.00013698,2]
[332004265,1720931442123,-500.0,0.00013698,2]
[332004268,1720931442132,-500.0,0.00013698,2]
[332004270,1720931442142,-500.0,0.00013698,2]
[332004271,1720931442151,-500.0,0.00013698,2]
[332004272,1720931442160,-500.0,0.00013698,2]
[332004273,1720931442170,-500.0,0.00013698,2]
[332004274,1720931442179,-500.0,0.00013698,2]
[332004275,1720931442190,-500.0,0.00013698,2]
[332004276,1720931442199,-500.0,0.00013698,2]
[332004277,1720931442209,-500.0,0.00013698,2]
[332004278,1720931442219,-500.0,0.00013698,2]
[332004279,1720931442228,-500.0,0.00013698,2]
[332004280,1720931442237,-500.0,0.00013698,2]
[332004282,1720931442247,-624.60550066,0.00013698,2]
[332004283,1720931442257,-500.0,0.00013698,2]
[332004285,1720931442266,-500.0,0.00013698,2]
[332004287,1720931442276,-500.0,0.00013698,2]
[332004289,1720931442285,-500.0,0.00013698,2]
[332004291,1720931442294,-507.15702517,0.00013698,2]
[332004293,1720931442303,-227.0600551,0.00013698,2]
[332004297,1720931442312,-500.0,0.00013698,2]
[332004301,1720931442321,-500.0,0.00013698,2]
[332004305,1720931442331,-500.0,0.00013698,2]
[332004309,1720931442340,-500.0,0.00013698,2]
[332004313,1720931442349,-500.0,0.00013698,2]
[332004317,1720931442358,-500.0,0.00013698,2]
[332004320,1720931442367,-505.48487694,0.00013698,2]
[332004323,1720931442376,-500.0,0.00013698,2]
[332004325,1720931442386,-500.0,0.00013698,2]
[332004328,1720931442395,-500.0,0.00013698,2]
[332004330,1720931442405,-500.0,0.00013698,2]
[332004332,1720931442414,-500.0,0.00013698,2]
[332004337,1720931442424,-500.0,0.00013698,2]
[332004341,1720931442432,-500.0,0.00013698,2]
[332004345,1720931442443,-545.15357901,0.00013698,2]
[332004349,1720931442455,-500.0,0.00013698,2]
[332004353,1720931442465,-500.0,0.00013698,2]
[332004355,1720931442473,-500.0,0.00013698,2]
[332004359,1720931442483,-500.0,0.00013698,2]
[332004362,1720931442491,-200.0,0.00013698,2]
[332004365,1720931442500,-500.0,0.00013698,2]
[332004367,1720931442510,-500.0,0.00013698,2]
[332004368,1720931442519,-500.0,0.00013698,2]
[332004371,1720931442528,-500.0,0.00013698,2]
[332004373,1720931442537,-500.0,0.00013698,2]
[332004375,1720931442547,-500.0,0.00013698,2]
[332004376,1720931442556,-500.0,0.00013698,2]
[332004378,1720931442566,-500.0,0.00013698,2]
[332004381,1720931442575,-500.0,0.00013698,2]
[332004382,1720931442584,-500.0,0.00013698,2]
[332004384,1720931442594,-500.0,0.00013698,2]
[332004386,1720931442604,-500.0,0.00013698,2]
[332004389,1720931442613,-500.0,0.00013698,2]
[332004391,1720931442628,-500.0,0.00013698,2]
[332004393,1720931442637,-500.0,0.00013698,2]
[332004395,1720931442646,-500.0,0.00013698,2]
[332004397,1720931442655,-500.0,0.00013698,2]
[332004399,1720931442664,-500.0,0.00013698,2]
[332004401,1720931442673,-500.0,0.00013698,2]
[332004403,1720931442682,-500.0,0.00013698,2]
[332004404,1720931442694,-500.0,0.00013698,2]
[332004406,1720931442704,-500.0,0.00013698,2]
[332004409,1720931442714,-166.86394728,0.00013698,2]
[332004410,1720931442723,-500.0,0.00013698,2]
[332004412,1720931442732,-500.0,0.00013698,2]
[332004415,1720931442741,-500.0,0.00013698,2]
[332004417,1720931442750,-500.0,0.00013698,2]
[332004419,1720931442760,-500.0,0.00013698,2]
[332004421,1720931442769,-500.0,0.00013698,2]
[332004423,1720931442779,-500.0,0.00013698,2]
[332004424,1720931442789,-500.0,0.00013698,2]
[332004426,1720931442798,-500.0,0.00013698,2]
[332004427,1720931442807,-500.0,0.00013698,2]
[332004428,1720931442817,-500.0,0.00013698,2]
[332004430,1720931442828,-500.0,0.00013698,2]
[332004432,1720931442837,-500.86691923,0.00013698,2]
[332004434,1720931442846,-500.0,0.00013698,2]
[332004436,1720931442856,-525.57607932,0.00013698,2]
[332004438,1720931442866,-500.0,0.00013698,2]
[332004440,1720931442876,-500.0,0.00013698,2]
[332004443,1720931442885,-500.0,0.00013698,2]
[332004447,1720931442895,-500.0,0.00013698,2]
[332004449,1720931442904,-500.0,0.00013698,2]
[332004452,1720931442913,-500.0,0.00013698,2]
[332004456,1720931442923,-500.0,0.00013698,2]
[332004459,1720931442932,-500.0,0.00013698,2]
[332004462,1720931442945,-500.0,0.00013698,2]
[332004465,1720931442954,-500.0,0.00013698,2]
[332004467,1720931442964,-748.79,0.00013698,2]
[332004469,1720931442972,-500.0,0.00013698,2]
[332004470,1720931442984,-500.0,0.00013698,2]
[332004473,1720931442993,-500.0,0.00013698,2]
[332004476,1720931443002,-500.0,0.00013698,2]
[332004480,1720931443012,-500.0,0.00013698,2]
[332004482,1720931443022,-500.0,0.00013698,2]
[332004483,1720931443032,-500.0,0.00013698,2]
[332004484,1720931443041,-500.0,0.00013698,2]
[332004485,1720931443051,-500.0,0.00013698,2]
[332004486,1720931443061,-500.0,0.00013698,2]
[332004487,1720931443071,-500.0,0.00013698,2]
[332004488,1720931443081,-500.0,0.00013698,2]
[332004489,1720931443091,-500.0,0.00013698,2]
[332004490,1720931443099,-500.0,0.00013698,2]
[332004491,1720931443109,-500.0,0.00013698,2]
[332004492,1720931443118,-500.0,0.00013698,2]
[332004493,1720931443128,-500.0,0.00013698,2]
[332004494,1720931443138,-500.0,0.00013698,2]
[332004495,1720931443147,-500.0,0.00013698,2]
[332004496,1720931443157,-500.0,0.00013698,2]
[332004497,1720931443166,-500.0,0.00013698,2]
[332004498,1720931443176,-500.0,0.00013698,2]
[332004499,1720931443185,-500.0,0.00013698,2]
[332004500,1720931443197,-500.0,0.00013698,2]
[332004501,1720931443207,-544.95303659,0.00013698,2]
[332004502,1720931443216,-500.0,0.00013698,2]
[332004503,1720931443226,-500.0,0.00013698,2]
[332004504,1720931443236,-500.0,0.00013698,2]
[332004505,1720931443245,-500.0,0.00013698,2]
[332004506,1720931443254,-500.0,0.00013698,2]
[332004507,1720931443264,-500.0,0.00013698,2]
[332004508,1720931443273,-500.0,0.00013698,2]
[332004509,1720931443282,-500.0,0.00013698,2]
[332004510,1720931443291,-500.0,0.00013698,2]
[332004511,1720931443300,-500.0,0.00013698,2]
[332004512,1720931443309,-573.44370016,0.00013698,2]
[332004513,1720931443319,-500.0,0.00013698,2]
[332004514,1720931443329,-500.0,0.00013698,2]
[332004515,1720931443338,-500.0,0.00013698,2]
[332004516,1720931443348,-500.0,0.00013698,2]
[332004517,1720931443357,-500.0,0.00013698,2]
[332004518,1720931443366,-500.0,0.00013698,2]
[332004519,1720931443376,-500.0,0.00013698,2]
[332004520,1720931443385,-500.0,0.00013698,2]
[332004521,1720931443395,-500.0,0.00013698,2]
[332004522,1720931443404,-500.0,0.00013698,2]
[332004523,1720931443414,-919.12,0.00013698,2]
[332004524,1720931443423,-500.0,0.00013698,2]
[332004525,1720931443432,-500.0,0.00013698,2]
[332004526,1720931443444,-512.97,0.00013698,2]
[332004527,1720931443453,-500.0,0.00013698,2]
[332004528,1720931443462,-500.0,0.00013698,2]
[332004529,1720931443472,-3501.15,0.00013698,2]
[332004530,1720931443482,-500.0,0.00013698,2]
[332004531,1720931443491,-500.0,0.00013698,2]
[332004532,1720931443501,-500.0,0.00013698,2]
[332004533,1720931443510,-500.0,0.00013698,2]
[332004534,1720931443520,-500.0,0.00013698,2]
[332004535,1720931443530,-500.0,0.00013698,2]
[332004536,1720931443540,-500.0,0.00013698,2]
[332004537,1720931443550,-500.0,0.00013698,2]
[332004538,1720931443561,-500.0,0.00013698,2]
[332004539,1720931443572,-500.0,0.00013698,2]
[332004540,1720931443583,-500.0,0.00013698,2]
[332004541,1720931443592,-500.0,0.00013698,2]
[332004542,1720931443602,-500.0,0.00013698,2]